bitfinex-derivatives/quotes_BTCF0:USTF0_20250402
["timestamp","ask_amount","ask_price","bid_price","bid_amount"]
[1743565135410,0.00112001,84559.0,84558.0,0.21203512]
[1743565137208,0.00112001,84559.0,84558.0,0.28951512]
[1743565140126,0.00112001,84559.0,84558.0,0.32201512]
[1743565140724,0.00112001,84559.0,84558.0,0.24453512]
[1743565140923,0.059134,84561.0,84560.0,0.1182686]
[1743565141115,0.06025401,84561.0,84560.0,0.1182686]
[1743565141422,0.18658295,84561.0,84560.0,0.1188686]
[1743565143923,0.24988295,84561.0,84560.0,0.1188686]
[1743565149220,0.24988295,84561.0,84560.0,0.0006]
[1743565149221,0.61068295,84561.0,84560.0,0.0006]
[1743565149525,0.1182784,84554.0,84553.0,0.1182776]
[1743565149729,0.11939841,84554.0,84553.0,0.1193976]
[1743565149918,0.11939841,84554.0,84553.0,0.1520976]
[1743565149919,0.18089841,84554.0,84553.0,0.1520976]
[1743565150320,0.18089841,84554.0,84553.0,0.2703731]
[1743565150615,0.18089841,84554.0,84553.0,0.1520955]
[1743565151414,0.18089841,84554.0,84553.0,0.00112]
[1743565151415,0.31033442,84554.0,84553.0,0.00112]
[1743565151620,0.1182798,84552.0,84551.0,8e-05]
[1743565151826,0.11939981,84552.0,84551.0,0.1182812]
[1743565152119,0.24883582,84552.0,84551.0,0.0322]
[1743565152321,0.31043582,84552.0,84551.0,0.0006]
[1743565152521,0.1182812,84551.0,84550.0,0.00047309]
[1743565152722,0.15040121,84551.0,84550.0,0.00107309]
[1743565152931,0.33519952,84551.0,84550.0,0.00107309]
[1743565154134,0.33619952,84551.0,84550.0,0.00107309]
[1743565154317,0.33619952,84551.0,84550.0,0.00047309]
[1743565155038,0.33619952,84551.0,84550.0,0.11875569]
[1743565155039,0.33719952,84551.0,84550.0,0.11875569]
[1743565155229,0.33719952,84551.0,84550.0,0.11987569]
[1743565155529,0.33719952,84551.0,84550.0,0.00159309]
[1743565155735,0.33719952,84551.0,84550.0,0.11875569]
[1743565156728,0.33719952,84551.0,84550.0,0.11935569]
[1743565156729,0.00312001,84551.0,84550.0,0.11935569]
[1743565156928,0.00312001,84551.0,84550.0,0.21385569]
[1743565157329,0.17599374,84554.0,84550.0,0.21385569]
[1743565157330,0.21143315,84560.0,84553.0,0.0591391]
[1743565157638,0.1487413,84580.0,84579.0,0.1182421]
[1743565157843,0.1804413,84580.0,84579.0,0.1188821]
[1743565158028,0.16658554,84580.0,84579.0,0.1188821]
[1743565158227,0.16658554,84580.0,84579.0,0.00064]
[1743565158228,0.31572624,84580.0,84579.0,0.00064]
[1743565158540,0.31572624,84580.0,84572.0,0.032]
[1743565158541,0.1182505,84574.0,84573.0,0.2548453]
[1743565158742,0.00076,84574.0,84573.0,0.2554453]
[1743565159023,0.1190091,84574.0,84573.0,0.1779653]
[1743565159433,0.06486,84574.0,84573.0,0.1779653]
[1743565159642,0.00076,84574.0,84573.0,0.2113653]
[1743565159935,0.0332,84578.0,84577.0,0.1182449]
[1743565160137,0.034,84578.0,84577.0,0.1188849]
[1743565161036,0.0008,84578.0,84577.0,0.1188849]
[1743565161230,0.3608,84597.0,84587.0,0.1182309]
[1743565161231,0.03337736,84588.0,84587.0,0.1182309]
[1743565161436,0.03337736,84588.0,84587.0,0.1963109]
[1743565161437,0.00017736,84588.0,84587.0,0.1963109]
[1743565161638,0.00017736,84588.0,84587.0,0.24178069]
[1743565161833,0.00093736,84588.0,84587.0,0.2297109]
[1743565162036,0.00017736,84588.0,84587.0,0.2297109]
[1743565162239,0.11916686,84588.0,84587.0,0.2297109]
[1743565162833,0.00393736,84588.0,84587.0,0.2297109]
[1743565163234,0.12216686,84588.0,84587.0,0.2297109]
[1743565163543,0.24955819,84588.0,84587.0,0.00068]
[1743565163837,0.1773539,84586.0,84585.0,0.1182309]
[1743565164035,0.1781139,84586.0,84585.0,0.1188309]
[1743565164239,0.37130523,84586.0,84585.0,0.1188309]
[1743565164641,0.37130523,84586.0,84585.0,0.0006]
[1743565164841,0.1773662,84580.0,84579.0,0.1182355]
[1743565165044,0.1781662,84580.0,84579.0,0.1189155]
[1743565165230,0.0008,84580.0,84579.0,0.237152]
[1743565165741,0.0008,84580.0,84579.0,0.644752]
[1743565165949,0.1182354,84584.0,84583.0,0.1182351]
[1743565166130,0.1189954,84584.0,84583.0,0.1188351]
[1743565166337,0.1805954,84584.0,84583.0,0.1188351]
[1743565168048,0.31852314,84584.0,84583.0,0.1188351]
[1743565168436,0.32052314,84584.0,84583.0,0.1188351]
[1743565169141,0.20228774,84584.0,84583.0,0.1188351]
[1743565169341,0.32052284,84584.0,84583.0,0.1188351]
[1743565169643,0.1845951,84584.0,84583.0,0.1188351]
[1743565170030,0.1845951,84584.0,84583.0,0.1495351]
[1743565170236,0.1845951,84584.0,84583.0,0.1521351]
[1743565170640,0.31757637,84584.0,84583.0,0.1521351]
[1743565173550,0.1845951,84584.0,84583.0,0.1521351]
[1743565174743,0.31926118,84584.0,84583.0,0.1188351]
[1743565181749,0.42451648,84584.0,84583.0,0.1188351]
[1743565183053,0.42451648,84584.0,84583.0,0.1494351]
[1743565184055,0.30628138,84584.0,84583.0,0.1494351]
[1743565184256,0.42451648,84584.0,84583.0,0.1494351]
[1743565185852,0.20102608,84584.0,84583.0,0.1494351]
[1743565186050,0.06636,84584.0,84583.0,0.1818351]
[1743565189254,0.00476,84584.0,84583.0,0.1818351]
[1743565189566,0.00476,84584.0,84583.0,0.5426351]
[1743565189856,0.03188,84590.0,84583.0,0.5426351]
[1743565189857,0.17633058,84591.0,84584.0,0.0591174]
[1743565190058,0.17705058,84591.0,84590.0,0.4790267]
[1743565190265,0.17633058,84591.0,84590.0,0.4797067]
[1743565190462,0.21037742,84598.0,84597.0,0.1182169]
[1743565190760,0.21097742,84598.0,84597.0,0.1188969]
[1743565191260,0.21097742,84598.0,84597.0,0.4796969]
[1743565191462,0.21097742,84598.0,84597.0,0.6183569]
[1743565191659,0.21097742,84598.0,84597.0,0.63109405]
[1743565192671,0.21097742,84598.0,84597.0,0.63209405]
[1743565193263,0.00068,84598.0,84597.0,0.6203569]
[1743565193562,0.0591056,84601.0,84597.0,0.50214]
[1743565193766,0.1182155,84599.0,84598.0,0.118215]
[1743565193968,0.11881551,84599.0,84598.0,0.118935]
[1743565194166,0.18021551,84599.0,84598.0,0.152135]
[1743565195573,0.18021551,84599.0,84598.0,0.156135]
[1743565198768,0.06200001,84599.0,84598.0,0.156135]
[1743565199271,0.18021411,84599.0,84598.0,0.156135]
[1743565200463,0.06200001,84599.0,84598.0,0.156135]
[1743565200973,0.18021411,84599.0,84598.0,0.122935]
[1743565201171,0.30333841,84599.0,84598.0,0.122935]
[1743565201570,0.30333841,84599.0,84598.0,0.118935]
[1743565201778,0.30333841,84599.0,84598.0,0.153735]
[1743565202373,0.30333841,84599.0,84598.0,0.152735]
[1743565202787,0.30333841,84599.0,84598.0,0.150735]
[1743565202974,0.30333841,84599.0,84598.0,0.151735]
[1743565203575,0.66413841,84599.0,84598.0,0.00272]
[1743565203771,0.66413841,84599.0,84598.0,0.002]
[1743565204176,0.66413841,84599.0,84598.0,0.00268]
[1743565205078,0.66413841,84599.0,84598.0,0.002]
[1743565208076,0.66413841,84599.0,84598.0,0.001]
[1743565208280,0.66413841,84599.0,84590.0,0.1182261]
[1743565208281,0.1182253,84591.0,84590.0,0.1182261]
[1743565208477,0.4796653,84591.0,84590.0,0.1189461]
[1743565208780,0.61327666,84591.0,84590.0,0.1189461]
[1743565209168,0.67827666,84591.0,84590.0,0.00072]
[1743565209478,0.1182267,84590.0,84589.0,0.00017736]
[1743565209778,0.11882671,84590.0,84589.0,0.00017736]
[1743565209979,0.31266001,84590.0,84589.0,0.00017736]
[1743565210177,0.31266001,84590.0,84589.0,0.11840546]
[1743565210382,0.31266001,84590.0,84589.0,0.11904546]
[1743565210584,0.31266001,84590.0,84589.0,0.00081736]
[1743565210773,0.31266001,84590.0,84589.0,0.00017736]
[1743565210978,0.31266001,84590.0,84589.0,0.00081736]
[1743565211179,0.31266001,84590.0,84589.0,0.11904546]
[1743565212980,0.31266001,84590.0,84589.0,0.00081736]
[1743565213280,0.31266001,84590.0,84589.0,0.11840546]
[1743565213881,0.31266001,84590.0,84589.0,0.11912546]
[1743565215683,0.31266001,84590.0,84589.0,0.00089736]
[1743565215877,0.31266001,84590.0,84589.0,0.00017736]
[1743565216284,0.31266001,84590.0,84589.0,0.11904546]
[1743565216483,0.31266001,84590.0,84589.0,0.00081736]
[1743565216783,0.31266001,84590.0,84589.0,0.00017736]
[1743565216977,0.31266001,84590.0,84589.0,0.00117736]
[1743565217173,0.31266001,84590.0,84589.0,0.00217736]
[1743565217679,0.31266001,84590.0,84589.0,0.00181736]
[1743565217878,0.31366001,84590.0,84589.0,0.00017736]
[1743565218389,0.31566001,84590.0,84589.0,0.00017736]
[1743565219278,0.31566001,84590.0,84589.0,0.00081736]
[1743565220287,0.31766001,84590.0,84589.0,0.00017736]
[1743565220474,0.31566001,84590.0,84589.0,0.00017736]
[1743565220673,0.31666001,84590.0,84589.0,0.00017736]
[1743565221079,0.31666001,84590.0,84589.0,0.03165736]
[1743565221592,0.31566001,84590.0,84589.0,0.03165736]
[1743565222084,0.31466001,84590.0,84589.0,0.14988546]
[1743565222490,0.31466001,84590.0,84589.0,0.18238546]
[1743565224091,0.31366001,84590.0,84589.0,0.18238546]
[1743565225892,0.31366001,84590.0,84589.0,0.21498546]
[1743565231885,0.31366001,84590.0,84589.0,0.03165736]
[1743565232084,0.31366001,84590.0,84589.0,0.03097736]
[1743565232290,0.31366001,84590.0,84589.0,0.03165736]
[1743565232789,0.31366001,84590.0,84589.0,0.14988546]
[1743565232992,0.31266001,84590.0,84589.0,0.14988546]
[1743565233189,0.31466001,84590.0,84589.0,0.14988546]
[1743565233384,0.31566001,84590.0,84589.0,0.14988546]
[1743565234396,0.31466001,84590.0,84589.0,0.14988546]
[1743565234701,0.31566001,84590.0,84589.0,0.14988546]
[1743565236097,0.37314739,84590.0,84589.0,0.14988546]
[1743565237595,0.37214739,84590.0,84589.0,0.14988546]
[1743565240200,0.18892069,84590.0,84589.0,0.14988546]
[1743565240406,0.55064481,84590.0,84589.0,0.14988546]
[1743565241603,0.58314481,84590.0,84589.0,0.03165736]
[1743565241799,0.58314481,84590.0,84589.0,0.14920546]
[1743565242700,0.58214481,84590.0,84589.0,0.14920546]
[1743565243304,0.58114481,84590.0,84589.0,0.14920546]
[1743565243605,0.58314481,84590.0,84589.0,0.14984546]
[1743565243807,0.37284739,84590.0,84589.0,0.14984546]
[1743565245011,0.37384739,84590.0,84589.0,0.14984546]
[1743565245512,0.37284739,84590.0,84589.0,0.14984546]
[1743565246209,0.37184739,84590.0,84589.0,0.14984546]
[1743565246510,0.37284739,84590.0,84589.0,0.14984546]
[1743565247902,0.37284739,84590.0,84589.0,0.03161736]
[1743565248099,0.37284739,84590.0,84589.0,0.03097736]
[1743565248298,0.37284739,84590.0,84589.0,0.03161736]
[1743565248506,0.37284739,84590.0,84589.0,0.00081736]
[1743565248702,0.37284739,84590.0,84589.0,0.00017736]
[1743565249809,0.1182463,84576.0,84575.0,0.21179149]
[1743565250108,0.4796863,84576.0,84575.0,0.21251149]
[1743565250314,0.61566098,84576.0,84575.0,0.00072]
[1743565250615,0.1182477,84575.0,84574.0,0.33003999]
[1743565250809,0.1189277,84575.0,84574.0,0.21243149]
[1743565251016,0.28398113,84575.0,84574.0,0.21243149]
[1743565251207,0.31508113,84575.0,84574.0,0.21243149]
[1743565251509,0.31508113,84575.0,84574.0,0.24403149]
[1743565251905,0.32392078,84575.0,84574.0,0.24403149]
[1743565252798,0.32392078,84575.0,84574.0,0.21243149]
[1743565253299,0.32692078,84575.0,84574.0,0.21243149]
[1743565253903,0.32892078,84575.0,84574.0,0.21243149]
[1743565254103,0.32892078,84575.0,84574.0,0.00064]
[1743565254309,0.1182519,84572.0,84571.0,0.03785922]
[1743565254507,0.11885191,84572.0,84571.0,0.03785922]
[1743565254705,0.2498503,84572.0,84571.0,0.03785922]
[1743565257117,0.2548503,84572.0,84571.0,0.03785922]
[1743565257416,0.2578503,84572.0,84571.0,0.03785922]
[1743565258317,0.31533768,84572.0,84571.0,0.03785922]
[1743565258507,0.31533768,84572.0,84571.0,0.06915922]
[1743565258704,0.31533768,84572.0,84571.0,0.18741252]
[1743565258705,0.19708578,84572.0,84571.0,0.18741252]
[1743565258910,0.06608739,84572.0,84571.0,0.25321252]
[1743565259107,0.06608739,84572.0,84571.0,0.25389252]
[1743565259507,0.06508739,84572.0,84571.0,0.25389252]
[1743565259708,1e-08,84572.0,84571.0,0.25389252]
[1743565260015,0.00080001,84572.0,84571.0,0.25389252]
[1743565260411,0.0008,84572.0,84571.0,0.25389252]
[1743565260614,8e-05,84574.0,84573.0,0.1182505]
[1743565260813,8e-05,84574.0,84573.0,0.4801305]
[1743565261115,8e-05,84574.0,84573.0,0.49195109]
[1743565261311,0.00112001,84574.0,84573.0,0.49195109]
[1743565261715,0.00112001,84574.0,84573.0,0.4801305]
[1743565261910,0.11936911,84574.0,84573.0,0.4801305]
[1743565262115,0.11936911,84574.0,84573.0,0.5461305]
[1743565262116,0.00116,84574.0,84573.0,0.5461305]
[1743565262316,0.10589322,84583.0,84582.0,0.1182379]
[1743565262513,8e-05,84591.0,84584.0,0.1773521]
[1743565262716,1e-08,84587.0,84586.0,0.1182323]
[1743565262914,0.29428227,84593.0,84592.0,0.1182239]
[1743565263120,0.29568228,84593.0,84592.0,0.1196239]
[1743565263839,0.29568228,84593.0,84592.0,0.1863239]
[1743565265427,0.29768228,84593.0,84592.0,0.1863239]
[1743565266120,0.00340001,84593.0,84592.0,0.1863239]
[1743565266421,0.12162251,84593.0,84592.0,0.1863239]
[1743565267111,0.00340001,84593.0,84592.0,0.1863239]
[1743565268123,0.12162251,84593.0,84592.0,0.1863239]
[1743565268716,0.00340001,84593.0,84592.0,0.1863239]
[1743565269119,0.002,84593.0,84592.0,0.1863239]
[1743565278030,0.1202225,84593.0,84592.0,0.0014]
[1743565278225,0.1215825,84593.0,84592.0,0.1196239]
[1743565278426,0.00336,84593.0,84592.0,0.1196239]
[1743565278730,0.1215825,84593.0,84592.0,0.1196239]
[1743565278932,0.1866825,84593.0,84592.0,0.1196239]
[1743565279124,0.1846825,84593.0,84592.0,0.1196239]
[1743565279323,0.1876825,84593.0,84592.0,0.1196239]
[1743565279827,0.1896825,84593.0,84592.0,0.1196239]
[1743565280735,0.1886825,84593.0,84592.0,0.1196239]
[1743565281120,0.1866825,84593.0,84592.0,0.1196239]
[1743565281319,0.1876825,84593.0,84592.0,0.1196239]
[1743565282632,0.1876825,84593.0,84592.0,0.13499399]
[1743565283737,0.1856825,84593.0,84592.0,0.1196239]
[1743565283938,0.1876825,84593.0,84592.0,0.1196239]
[1743565290731,0.1856825,84593.0,84592.0,0.1196239]
[1743565291033,0.1886825,84593.0,84592.0,0.1196239]
[1743565292139,0.1876825,84593.0,84592.0,0.1196239]
[1743565293039,0.06946,84593.0,84592.0,0.1196239]
[1743565293241,8e-05,84600.0,84599.0,0.1182141]
[1743565293436,0.29426537,84606.0,84600.0,0.1182127]
[1743565293635,0.20893713,84601.0,84600.0,0.1199727]
[1743565293858,0.20893713,84601.0,84600.0,0.1858727]
[1743565294744,0.21093713,84601.0,84600.0,0.20139198]
[1743565295143,0.21393713,84601.0,84600.0,0.20139198]
[1743565295542,0.18123713,84601.0,84600.0,0.20139198]
[1743565297546,0.29944843,84601.0,84600.0,0.16859198]
[1743565297840,0.29944843,84601.0,84600.0,0.18064287]
[1743565298048,0.33204843,84601.0,84600.0,0.18064287]
[1743565298243,0.15598866,84601.0,84600.0,0.18064287]
[1743565298639,0.03777736,84601.0,84600.0,0.18064287]
[1743565298835,0.03777736,84601.0,84600.0,0.21434287]
[1743565299237,0.00517736,84601.0,84600.0,0.21434287]
[1743565301349,0.00017736,84601.0,84600.0,0.21634287]
[1743565302151,8e-05,84605.0,84604.0,0.1182071]
[1743565302351,8e-05,84605.0,84604.0,0.1200471]
[1743565302743,8e-05,84605.0,84604.0,0.1918471]
[1743565303851,0.4789784,84625.0,84613.0,0.0590972]
[1743565304049,8e-05,84618.0,84616.0,0.1181904]
[1743565304246,0.0004,84623.0,84616.0,0.1199904]
[1743565304438,0.0004,84623.0,84622.0,0.118182]
[1743565304642,0.0004,84623.0,84622.0,0.119982]
[1743565305050,0.0004,84623.0,84622.0,0.13199348]
[1743565305246,0.0004,84623.0,84622.0,0.14751276]
[1743565305441,0.0004,84623.0,84622.0,0.20510128]
[1743565306152,0.0034,84623.0,84622.0,0.20510128]
[1743565306655,0.0372,84623.0,84622.0,0.20510128]
[1743565306853,0.0422,84623.0,84622.0,0.20510128]
[1743565308757,0.0422,84623.0,84622.0,0.21377829]
[1743565316053,0.0764,84623.0,84622.0,0.21377829]
[1743565316259,0.0084,84623.0,84622.0,0.21377829]
[1743565317357,0.0034,84623.0,84622.0,0.21377829]
[1743565317755,0.0004,84623.0,84622.0,0.21477829]
[1743565319863,0.1185806,84623.0,84622.0,0.17957829]
[1743565320660,0.1863806,84623.0,84622.0,0.16405901]
[1743565322063,0.1863806,84623.0,84622.0,0.155382]
[1743565327670,0.0682,84623.0,84622.0,0.155382]
[1743565328068,0.5471806,84623.0,84622.0,0.0028]
[1743565328376,0.67389545,84623.0,84622.0,0.001]
[1743565329371,0.67389545,84623.0,84622.0,0.01640856]
[1743565329561,0.67789545,84623.0,84622.0,0.01640856]
[1743565329964,0.68189545,84623.0,84622.0,0.01540856]
[1743565330371,0.68289545,84623.0,84622.0,0.01540856]
[1743565330576,0.69458319,84623.0,84622.0,0.01716856]
[1743565330779,0.69458319,84623.0,84622.0,0.01540856]
[1743565331166,0.69058319,84623.0,84622.0,0.01540856]
[1743565331390,0.69358319,84623.0,84622.0,0.01540856]
[1743565331871,0.68858319,84623.0,84622.0,0.01540856]
[1743565332081,0.69258319,84623.0,84622.0,0.01540856]
[1743565332264,0.69258319,84623.0,84615.0,0.2363818]
[1743565332265,0.1181904,84616.0,84615.0,0.1181907]
[1743565332578,0.1181904,84616.0,84615.0,0.1199507]
[1743565332779,0.1181904,84616.0,84615.0,0.00176]
[1743565333377,0.1862904,84616.0,84615.0,0.1199518]
[1743565333775,0.1882904,84616.0,84615.0,0.1199518]
[1743565334176,0.1892904,84616.0,84615.0,0.1199518]
[1743565334379,0.1892904,84616.0,84615.0,0.00176]
[1743565334770,0.1892904,84616.0,84615.0,0.1199518]
[1743565334970,0.3304517,84616.0,84615.0,0.1199518]
[1743565335470,0.3284517,84616.0,84615.0,0.1199518]
[1743565335781,0.3304517,84616.0,84615.0,0.1199518]
[1743565336083,0.3304517,84616.0,84615.0,0.00176]
[1743565336267,0.1181918,84615.0,84614.0,0.00017726]
[1743565336471,0.1181918,84615.0,84614.0,0.00193726]
[1743565336671,0.1853918,84615.0,84614.0,0.00193726]
[1743565337683,0.1863918,84615.0,84614.0,0.12013046]
[1743565338274,0.1883918,84615.0,84614.0,0.12013046]
[1743565339074,0.1873918,84615.0,84614.0,0.12013046]
[1743565339675,0.1873918,84615.0,84614.0,0.00193726]
[1743565339879,0.1873918,84615.0,84614.0,0.00017726]
[1743565340171,0.1863918,84615.0,84614.0,0.00017726]
[1743565340368,0.1873918,84615.0,84614.0,0.00017726]
[1743565340570,0.1873918,84615.0,84614.0,0.00197726]
[1743565340781,0.1873918,84615.0,84614.0,0.00017726]
[1743565341473,0.1873918,84615.0,84614.0,0.12013046]
[1743565342382,0.1863918,84615.0,84614.0,0.12013046]
[1743565342587,0.1873918,84615.0,84614.0,0.12013046]
[1743565348071,0.002,84615.0,84614.0,0.12013046]
[1743565348884,0.002,84615.0,84614.0,0.15643046]
[1743565349177,0.001,84615.0,84614.0,0.15643046]
[1743565349378,0.1411613,84617.0,84616.0,0.1181904]
[1743565349577,0.1411613,84617.0,84616.0,0.1968304]
[1743565350773,0.1411613,84617.0,84616.0,0.2337304]
[1743565350973,8e-05,84622.0,84621.0,0.1181834]
[1743565351276,0.17680476,84623.0,84622.0,0.118182]
[1743565351482,0.17680476,84623.0,84622.0,0.119942]
[1743565351783,0.17680476,84623.0,84622.0,0.189242]
[1743565352583,0.0004,84623.0,84622.0,0.190242]
[1743565353570,0.1185806,84623.0,84622.0,0.190242]
[1743565353776,0.1185806,84623.0,84622.0,0.07206]
[1743565354185,0.1873806,84623.0,84622.0,0.190242]
[1743565355083,0.31777388,84623.0,84622.0,0.03716]
[1743565355287,0.31777388,84623.0,84622.0,0.001]
[1743565355480,0.118189,84617.0,84616.0,0.15229]
[1743565355780,0.478989,84617.0,84616.0,0.15405]
[1743565355986,0.60938228,84617.0,84616.0,0.15405]
[1743565356387,0.60938228,84617.0,84616.0,0.24765149]
[1743565356388,0.67798228,84617.0,84616.0,0.24765149]
[1743565357180,0.67798228,84617.0,84616.0,0.36584189]
[1743565357786,0.67798228,84617.0,84616.0,0.24765149]
[1743565358181,0.67998228,84617.0,84616.0,0.24765149]
[1743565358581,0.68298228,84617.0,84616.0,0.24765149]
[1743565358982,0.68098228,84617.0,84616.0,0.24765149]
[1743565359287,0.68098228,84617.0,84616.0,0.36584189]
[1743565360884,0.68098228,84617.0,84616.0,0.1540504]
[1743565361588,0.68098228,84617.0,84616.0,0.03586]
[1743565362088,0.68098228,84617.0,84616.0,0.0341]
[1743565362293,0.68098228,84617.0,84616.0,0.03586]
[1743565364191,0.68098228,84617.0,84616.0,0.0341]
[1743565364391,0.68098228,84617.0,84616.0,0.03586]
[1743565365387,0.68098228,84617.0,84616.0,0.1540504]
[1743565365985,0.68098228,84617.0,84616.0,0.03586]
[1743565366293,0.68098228,84617.0,84616.0,0.0341]
[1743565366483,0.68098228,84617.0,84616.0,0.03594]
[1743565367685,0.68098228,84617.0,84616.0,0.0341]
[1743565368194,0.67898228,84617.0,84616.0,0.0341]
[1743565368383,0.67998228,84617.0,84616.0,0.1522904]
[1743565368584,0.68198228,84617.0,84616.0,0.1540504]
[1743565368790,0.68198228,84617.0,84616.0,0.03586]
[1743565369186,0.68298228,84617.0,84616.0,0.1522904]
[1743565369390,0.68098228,84617.0,84616.0,0.1540504]
[1743565369697,0.68298228,84617.0,84616.0,0.1540504]
[1743565370389,0.68298228,84617.0,84616.0,0.03586]
[1743565370891,0.68298228,84617.0,84616.0,0.0341]
[1743565371690,0.67998228,84617.0,84616.0,0.0341]
[1743565371890,0.68298228,84617.0,84616.0,0.0341]
[1743565372396,0.68098228,84617.0,84616.0,0.0341]
[1743565372584,0.68298228,84617.0,84616.0,0.0359]
[1743565372789,0.68298228,84617.0,84616.0,0.1522904]
[1743565372989,0.68098228,84617.0,84616.0,0.1540504]
[1743565373187,0.68298228,84617.0,84616.0,0.1540504]
[1743565376595,0.32218228,84617.0,84616.0,0.1540504]
[1743565376900,0.68298228,84617.0,84616.0,0.1540504]
[1743565378499,0.32118228,84617.0,84616.0,0.1540504]
[1743565378687,0.67998228,84617.0,84616.0,0.1540504]
[1743565378888,0.32118228,84617.0,84616.0,0.1540504]
[1743565379084,0.67998228,84617.0,84616.0,0.1540504]
[1743565379292,0.68298228,84617.0,84616.0,0.1540504]
[1743565380890,0.31918228,84617.0,84616.0,0.1540504]
[1743565381192,0.68298228,84617.0,84616.0,0.1540504]
[1743565381797,0.68198228,84617.0,84616.0,0.1540504]
[1743565382301,0.25158228,84617.0,84616.0,0.2219504]
[1743565382504,0.37268185,84638.0,84616.0,0.10376]
[1743565382686,0.059086,84630.0,84621.0,0.1181834]
[1743565382893,0.17648476,84622.0,84621.0,0.1200234]
[1743565383596,0.17648476,84622.0,84621.0,0.1881234]
[1743565384100,0.18048476,84622.0,84621.0,0.1881234]
[1743565384693,0.18248476,84622.0,84621.0,0.20004773]
[1743565384905,0.18148476,84622.0,84621.0,0.20004773]
[1743565385298,0.18048476,84622.0,84621.0,0.20004773]
[1743565385902,0.29866676,84622.0,84621.0,0.20004773]
[1743565386506,0.122262,84622.0,84621.0,0.20004773]
[1743565387303,0.122262,84622.0,84621.0,0.1881234]
[1743565387803,0.34894567,84622.0,84621.0,0.1881234]
[1743565390997,0.34894567,84622.0,84621.0,0.1528234]
[1743565392101,0.34594567,84622.0,84621.0,0.1528234]
[1743565392402,0.34894567,84622.0,84621.0,0.1528234]
[1743565393797,0.12456367,84622.0,84621.0,0.1528234]
[1743565394001,0.00408,84622.0,84621.0,0.1528234]
[1743565394201,0.004,84622.0,84621.0,0.1528234]
[1743565397509,0.122182,84622.0,84621.0,0.1528234]
[1743565397904,0.3233557,84622.0,84621.0,0.1528234]
[1743565400405,0.3233557,84622.0,84621.0,0.03464]
[1743565400613,0.3233557,84622.0,84621.0,0.00184]
[1743565400811,0.0590944,84618.0,84616.0,0.1181892]
[1743565401007,0.5824904,84617.0,84616.0,0.1199492]
[1743565401218,0.70614659,84617.0,84616.0,0.1199492]
[1743565402619,0.70714659,84617.0,84616.0,0.1199492]
[1743565403910,0.70914659,84617.0,84616.0,0.1199492]
[1743565404517,0.1182057,84605.0,84604.0,0.21179149]
[1743565404709,0.1182057,84605.0,84604.0,0.21303149]
[1743565404909,0.24726835,84605.0,84604.0,0.21303149]
[1743565405109,0.24850836,84605.0,84604.0,0.21303149]
[1743565405318,0.31540836,84605.0,84604.0,0.21303149]
[1743565406323,0.31740836,84605.0,84604.0,0.21303149]
[1743565408021,0.32040836,84605.0,84604.0,0.21303149]
[1743565408523,0.32040836,84605.0,84604.0,0.00124]
[1743565408726,0.1182099,84602.0,84601.0,0.1182109]
[1743565408912,0.1195299,84602.0,84601.0,0.1182109]
[1743565409106,0.24291223,84602.0,84601.0,0.1195309]
[1743565409712,0.24291223,84602.0,84601.0,0.00132]
[1743565409913,0.1182169,84597.0,84596.0,0.11839456]
[1743565410116,0.48025691,84597.0,84596.0,0.11963456]
[1743565410721,0.54775691,84597.0,84596.0,0.11963456]
[1743565411223,0.68505126,84597.0,84596.0,0.11963456]
[1743565411717,0.68705126,84597.0,84596.0,0.00141726]
[1743565412024,0.68905126,84597.0,84596.0,0.00141726]
[1743565412323,0.68905126,84597.0,84596.0,0.00017726]
[1743565412517,0.68905126,84597.0,84596.0,0.11963556]
[1743565413318,0.68505126,84597.0,84596.0,0.11963556]
[1743565413617,0.68905126,84597.0,84596.0,0.11963556]
[1743565414015,0.69005126,84597.0,84596.0,0.11963556]
[1743565414214,0.68605126,84597.0,84596.0,0.11963556]
[1743565414421,0.69005126,84597.0,84596.0,0.11963556]
[1743565414618,0.68905126,84597.0,84596.0,0.11963556]
[1743565415115,0.68705126,84597.0,84596.0,0.11963556]
[1743565415311,0.68905126,84597.0,84596.0,0.11963556]
[1743565416742,0.68805126,84597.0,84596.0,0.11963556]
[1743565417322,0.68805126,84597.0,84596.0,0.15223556]
[1743565417917,0.68805126,84597.0,84596.0,0.03401726]
[1743565418323,0.68805126,84597.0,84596.0,0.03277726]
[1743565418828,0.68805126,84597.0,84596.0,0.15099556]
[1743565419032,0.68805126,84597.0,84596.0,0.15223556]
[1743565419528,0.68805126,84597.0,84596.0,0.18663556]
[1743565420427,0.68805126,84597.0,84596.0,0.21983556]
[1743565425332,0.25975126,84597.0,84596.0,0.21983556]
[1743565425529,0.00624001,84597.0,84596.0,0.21983556]
[1743565425738,0.1056783,84603.0,84602.0,0.1182099]
[1743565425929,0.1069583,84603.0,84602.0,0.1194499]
[1743565426444,0.2251668,84603.0,84602.0,0.1194499]
[1743565427635,0.1099583,84603.0,84602.0,0.13484169]
[1743565427837,0.17658202,84613.0,84607.0,0.1182029]
[1743565428040,8e-05,84610.0,84607.0,0.4806029]
[1743565428338,0.17658202,84613.0,84607.0,0.49599469]
[1743565428545,8e-05,84609.0,84607.0,0.49599469]
[1743565428935,0.14377855,84608.0,84607.0,0.49599469]
[1743565429344,0.14377855,84608.0,84607.0,0.4806029]
[1743565429649,0.14677855,84608.0,84607.0,0.4806029]
[1743565430150,0.006,84608.0,84607.0,0.4806029]
[1743565432641,0.0414,84608.0,84607.0,0.4806029]
[1743565434048,0.006,84608.0,84607.0,0.4806029]
[1743565437138,0.006,84608.0,84607.0,0.5574429]
[1743565440548,0.006,84608.0,84607.0,0.5943429]
[1743565440953,0.041,84608.0,84607.0,0.5943429]
[1743565443153,8e-05,84609.0,84607.0,0.5943429]
[1743565443347,0.0728,84626.0,84622.0,0.118182]
[1743565443547,0.0712,84626.0,84622.0,0.480622]
[1743565443851,0.0712,84626.0,84625.0,0.1181778]
[1743565443852,0.0351,84626.0,84625.0,0.1181778]
[1743565444057,0.0351,84626.0,84625.0,0.1197778]
[1743565444557,0.0351,84626.0,84625.0,0.13517225]
[1743565445153,0.0371,84626.0,84625.0,0.1557778]
[1743565445551,0.27866519,84626.0,84625.0,0.1197778]
[1743565445850,0.31286519,84626.0,84625.0,0.1197778]
[1743565446456,0.31586519,84626.0,84625.0,0.1197778]
[1743565450454,0.31586519,84626.0,84625.0,0.13525744]
[1743565451649,0.67666519,84626.0,84625.0,0.13525744]
[1743565457454,0.31586519,84626.0,84625.0,0.13525744]
[1743565457653,0.81744374,84626.0,84625.0,0.13525744]
[1743565457854,0.81744374,84626.0,84625.0,0.13365744]
[1743565458257,0.45664374,84626.0,84625.0,0.13365744]
[1743565458660,0.45664374,84626.0,84625.0,0.13525744]
[1743565459765,0.33325495,84626.0,84625.0,0.13525744]
[1743565460951,0.1924764,84626.0,84625.0,0.13525744]
[1743565463368,0.5532764,84626.0,84625.0,0.13525744]